Cogmind - Beta 15 @@@ ROGUE MODE // 2025.09.21 @ 11:50:36 Player: Runagate Result: Self-destructed Performance ------------- Evolutions (4) 2000 Regions Visited (4) 800 Robots Destroyed (13) 65 Value Destroyed (452) 452 Prototype IDs (9) 180 Alien Tech Used (0) 0 Bonus (800) 800 TOTAL SCORE: 4297 Bonus ------- Registered with UFD 300 Met Optimus in HQ 500 Cogmind --------- Core Integrity 493/850 Matter 199/300 Energy 33/100 System Corruption 22% Temperature Cool (0) Movement Rolling (115) Ox1 Location -6/Factory Parts ------- > --- POWER (1) -------- (None) > --- PROPULSION (4) --- Armored Huge Wheel > --- UTILITY (7) ------ Small Storage Unit High-capacity Storage Unit Improved Signal Interpreter > --- WEAPON (3) ------- (None) > --- INVENTORY (20) --- Light Deuterium Engine Light Treads Light Treads High-capacity Matter Pod (0) A0-MCA's Component Scanner Peak State ------------ > --- POWER ------------ (None) > --- PROPULSION ------- Wheel Compact Wheel Armored Huge Wheel > --- UTILITY ---------- Small Storage Unit High-capacity Storage Unit Improved Sensor Array Improved Signal Interpreter Experimental Terrain Scanner Surveybot 17 Chip Seismic Detector > --- WEAPON ----------- Assault Rifle Flak Gun Chainsword > --- INVENTORY -------- Light Deuterium Engine Light Treads Light Treads Armored Huge Wheel High-capacity Matter Pod A0-MCA's Component Scanner Salvaging Laser [Rating: 46] Favorites ----------- Power Ion Engine Engine Ion Engine Propulsion Light Treads Treads Light Treads Wheel Armored Huge Wheel Utility Small Storage Unit Device Seismic Detector Storage Small Storage Unit Processor Surveybot 17 Chip Weapon Salvaging Laser Energy Gun Salvaging Laser Ballistic Gun Assault Rifle Ballistic Cannon Improved Light Cannon Slashing Weapon Chainsword Build | -11 -10 -10 -9 -6 ------- Run | Yrd Mat Sub Scr Fac Slots Evolved 8 | . . . . 8 Power . | . . . . . Propulsion 2 | . . . . 2 Utility 5 | . . . . 5 Weapon 1 | . . . . 1 Parts Attached 28 | 9 . 3 3 13 Power 2 | 2 . . . . Engine 2 | 2 . . . . Core . | . . . . . Reactor . | . . . . . Propulsion 7 | 2 . . . 5 Treads 3 | 2 . . . 1 Leg . | . . . . . Wheel 4 | . . . . 4 Hover . | . . . . . Flight . | . . . . . Utility 7 | 2 . . 1 4 Device 3 | 1 . . . 2 Storage 2 | 1 . . 1 . Processor 2 | . . . . 2 Hackware . | . . . . . Protection . | . . . . . Artifact . | . . . . . Weapon 12 | 3 . 3 2 4 Energy Gun 4 | . . 3 . 1 Energy Cannon . | . . . . . Ballistic Gun 6 | 3 . . 2 1 Ballistic Cannon 1 | . . . . 1 Launcher . | . . . . . Special Weapon . | . . . . . Impact Weapon . | . . . . . Slashing Weapon 1 | . . . . 1 Piercing Weapon . | . . . . . Special Melee Weapon . | . . . . . Unidentified Prototypes . | . . . . . Parts Lost 15 | . . . . 15 Power 1 | . . . . 1 Propulsion 3 | . . . . 3 Utility 4 | . . . . 4 Weapon 7 | . . . . 7 Highest Loss Streak 5 | . . . . 5 To Critical Strikes . | . . . . . Average Backups 6 | 1 2 3 7 5 Power . | . 1 1 . . Propulsion . | . . . . 1 Utility 1 | . . . 1 1 Weapon 3 | . 1 2 4 1 Tool/Special . | . . . . . Unused Backups 4 | . . . 1 3 Power 1 | . . . . 1 Propulsion . | . . . . . Utility 3 | . . . 1 2 Weapon . | . . . . . Tool/Special . | . . . . . Average Slot Usage (%) 90 | . 100 100 100 69 Engine 10 | . 14 14 14 1 Treads 22 | . 28 28 28 8 Wheel 2 | . . . . 8 Device 13 | . 14 14 14 12 Storage 13 | . 14 14 14 10 Processor 1 | . . . . 6 Energy Gun 9 | . . 9 14 2 Ballistic Gun 13 | . 28 18 14 10 Peak Build Rating 46 | 7 7 7 10 46 Average Rating 14 | 5 7 7 7 32 On Entrance 6 | . 7 7 7 10 Naked Turns . | . . . . . Heaviest Build 58 | 14 14 14 49 58 Greatest Support 60 | 40 40 40 40 60 Greatest Overweight (x) 3 | . . . 1 3 Average Overweight (x) . | . . . . 1 Largest Inventory Capacity 20 | 8 8 8 20 20 Average Capacity 10 | 7 8 8 8 16 Most Carried 9 | 2 2 4 8 9 Average Carried 6 | 1 2 3 7 6 Final Capacity 20 | 8 8 8 8 20 Final Carried 8 | 2 2 4 8 5 Class Distribution -------------------- 77% | Mutant 14% | Skirmisher 4% | Gunner 4% | Assassin Dominant Class ---------------- Mutant | -10/Materials Mutant | -10/Subcaves Mutant | -9/Scraptown Skirmisher | -6/Factory Resources | -11 -10 -10 -9 -6 ----------- Run | Yrd Mat Sub Scr Fac Matter Collected 855 | 318 . 34 143 360 Remotely . | . . . . . Salvage Created 513 | 113 . 30 . 370 Parts 29 | 13 . . . 16 Haulers Intercepted . | . . . . . Recyclers Shooed . | . . . . . Parts Field Recycled . | . . . . . Retrieved Matter . | . . . . . Parts Self-Destructed 4 | . . 4 . . Prevented . | . . . . . Kills | -11 -10 -10 -9 -6 ------- Run | Yrd Mat Sub Scr Fac Combat Hostiles Destroyed 7 | . . 1 . 6 Melee 2 | . . . . 2 Guns 4 | . . 1 . 3 Cannons 1 | . . . . 1 Classes Destroyed 9 | 2 . 1 . 6 Worker 1 | . . . . 1 Tunneler 2 | 2 . . . . Recycler 2 | 1 . . . 1 Watcher 1 | . . . . 1 Grunt 2 | . . . . 2 Duelist 1 | . . . . 1 Hunter 1 | . . . . 1 Programmer 2 | . . . . 2 Subdweller 1 | . . 1 . . Best Kill Streak 3 | 2 . 1 . 3 Combat Bots Only 3 | . . 1 . 3 Max Kills in Single Turn 1 | 1 . 1 . 1 Gunslinging . | . . . . . Exploded . | . . . . . Melee 1 | . . . . 1 Uniques/NPCs Destroyed . | . . . . . Combat | -11 -10 -10 -9 -6 -------- Run | Yrd Mat Sub Scr Fac Hostile Shots Fired 121 | . . 2 . 119 Missed 36 | . . 2 . 34 Hits 85 | . . . . 85 Melee 3 | . . . . 3 Projectile 82 | . . . . 82 Critical Strikes 3 | . . . . 3 Damage Taken 1835 | . . . . 1835 Core 357 | . . . . 357 Absorbed by Shields . | . . . . . Core Remaining (%) 100 | 100 . . 100 . Volleys Fired 47 | 7 . 2 . 38 Largest 3 | 2 . 2 . 3 Hottest 81 | 40 . 50 . 81 Shots Fired 113 | 14 . 4 . 95 Gun 87 | 14 . 4 . 69 Cannon 26 | . . . . 26 Launcher . | . . . . . Special . | . . . . . Kinetic 101 | 14 . 3 . 84 Thermal 11 | . . 1 . 10 Explosive . | . . . . . Electromagnetic 1 | . . . . 1 Robot Hit Streak 7 | 4 . 4 . 7 Robot Miss Streak 7 | 2 . 1 . 7 Penetration Max . | . . . . . Secondary Targets . | . . . . . Shots Hit Robots 84 | 8 . 3 . 73 Core Hits 56 | 5 . 1 . 50 Critical Kills . | . . . . . Critical Parts Destroyed . | . . . . . Critical Strikes 3 | . . . . 3 Blast 1 | . . . . 1 Sever 2 | . . . . 2 Melee Attacks 14 | . . . . 14 Impact . | . . . . . Slashing 14 | . . . . 14 Piercing . | . . . . . Sneak Attacks 1 | . . . . 1 Combat Hostiles 1 | . . . . 1 Follow-up Attacks . | . . . . . Damage Inflicted 1526 | 89 . 24 . 1413 Guns 801 | 86 . 24 . 691 Cannons 361 | . . . . 361 Explosions . | . . . . . Melee 361 | . . . . 361 Ramming 3 | 3 . . . . Kinetic 1119 | 86 . 24 . 1009 Thermal 43 | . . . . 43 Explosive . | . . . . . Electromagnetic . | . . . . . Impact . | . . . . . Slashing 361 | . . . . 361 Piercing . | . . . . . Highest Corruption 22 | . . . . 22 Average Corruption 3 | . . . . 3 Corruption Purged . | . . . . . Corruption Blocked . | . . . . . Effects 16 | . . . . 16 Message Errors 6 | . . . . 6 Matter Fused 2 | . . . . 2 Heat Flow Errors 3 | . . . . 3 Energy Discharges 4 | . . . . 4 Data Loss (minor) 1 | . . . . 1 Overload Shots . | . . . . . Overflow Damage 25 | . . . . 25 Projectiles 16 | . . . . 16 Explosions . | . . . . . Melee 9 | . . . . 9 Knockbacks 6 | . . . . 6 Impact . | . . . . . Kinetic 6 | . . . . 6 Secondary . | . . . . . Self-Inflicted Damage . | . . . . . Shots . | . . . . . Rammed 2 | 2 . . . . Targets Rammed 2 | 2 . . . . Kicked . | . . . . . Crushed . | . . . . . Highest Temperature 258 | . . . . 258 Average Temperature 48 | . . . . 48 Received Heat Transfer 162 | . . . . 162 Siege Activations . | . . . . . Martial Activations . | . . . . . Shielding Activations . | . . . . . Robots Disrupted . | . . . . . Combat Hostiles . | . . . . . Robots Corrupted . | . . . . . Combat Hostiles . | . . . . . Parts Fried . | . . . . . Impact Corruptions . | . . . . . Robots Melted . | . . . . . Combat Hostiles . | . . . . . Parts Melted 1 | . . . . 1 Heat Transferred 125 | . . . . 125 Parts Sabotaged . | . . . . . Parts Stolen . | . . . . . Parts Stripped . | . . . . . Power Chain Reactions . | . . . . . Alert | -11 -10 -10 -9 -6 ------- Run | Yrd Mat Sub Scr Fac Maximum Alert Level . | . . . . . Low Security (%) 100 | 100 100 . . 100 Level 1 . | . . . . . Level 2 . | . . . . . Level 3 . | . . . . . Level 4 . | . . . . . Level 5 . | . . . . . High Security . | . . . . . Max Security . | . . . . . Peak Influence 52 | 10 6 . . 52 Initial . | . . . . . Average 9 | 1 1 . . 10 Influence Increases 290 | 15 11 . . 264 Destroy 0b10 Robot/C 120 | . . . . 120 Destroy 0b10 Robot/NC 30 | 15 . . . 15 Destroy Leader 42 | . . . . 42 Successful Hack 11 | . 11 . . . Disable Machine 30 | . . . . 30 Destroy Structure 27 | . . . . 27 Lose Combat Pursuer 30 | . . . . 30 Influence Decreases 290 | 15 11 . . 264 Time Decay 240 | 15 11 . . 214 Lost Part 50 | . . . . 50 Squads Dispatched 5 | . . . . 5 Investigation 1 | . . . . 1 Extermination 2 | . . . . 2 Reinforcement 2 | . . . . 2 Assault . | . . . . . Garrison . | . . . . . Intercept . | . . . . . Searches Triggered . | . . . . . Construction Impeded 1 | . . . . 1 Haulers Reinforced . | . . . . . Active Scanning Responses . | . . . . . Cargo Convoy Interrupts . | . . . . . Stealth | -11 -10 -10 -9 -6 --------- Run | Yrd Mat Sub Scr Fac Distress Signals 1 | . . . . 1 Communications Jammed . | . . . . . Distress Signals . | . . . . . Times Spotted 21 | . . 4 . 17 Peak Tracking Total 7 | . . 2 . 7 Tactical Retreats 2 | . . . . 2 Traps | -11 -10 -10 -9 -6 ------- Run | Yrd Mat Sub Scr Fac Traps Triggered 4 | . . . . 4 Indirectly . | . . . . . Trap Hack Attempts . | . . . . . Triggered . | . . . . . Disarmed . | . . . . . Reprogrammed . | . . . . . Reused . | . . . . . Traps Extracted . | . . . . . Installed . | . . . . . Triggered . | . . . . . Machines | -11 -10 -10 -9 -6 ---------- Run | Yrd Mat Sub Scr Fac Machines Disabled 2 | . . . . 2 Max in Single Turn 1 | . . . . 1 Machines Repaired . | . . . . . Machines Dismantled . | . . . . . Machines Sabotaged . | . . . . . Overloaded Fab Kills . | . . . . . Hacking | -11 -10 -10 -9 -6 --------- Run | Yrd Mat Sub Scr Fac Machines Accessed 3 | . 2 . 1 . Terminals 2 | . 2 . . . Fabricators . | . . . . . Repair Stations . | . . . . . Recycling Units . | . . . . . Scanalyzers . | . . . . . Garrison Access . | . . . . . Total Hacks 13 | . 6 . 7 . Successful 10 | . 3 . 7 . Failed 3 | . 3 . . . Catastrophic 1 | . 1 . . . Database Lockouts . | . . . . . Manual 5 | . 5 . . . Terminals 6 | . 6 . . . Fabricators . | . . . . . Repair Stations . | . . . . . Recycling Units . | . . . . . Scanalyzers . | . . . . . Garrison Access . | . . . . . Terminal Hacks 10 | . 3 . 7 . Record 7 | . . . 7 . Prototype ID Bank 1 | . 1 . . . Locate Traps 1 | . 1 . . . Zone Layout 1 | . 1 . . . Fabricator Hacks . | . . . . . Repair Station Hacks . | . . . . . Recycling Unit Hacks . | . . . . . Scanalyzer . | . . . . . Garrison Access Hacks . | . . . . . Unauthorized Hacks . | . . . . . Terminals . | . . . . . Fabricators . | . . . . . Repair Stations . | . . . . . Recycling Units . | . . . . . Scanalyzers . | . . . . . Garrison Access . | . . . . . Data Cores Recovered . | . . . . . Used . | . . . . . Hacking Detections 1 | . 1 . . . Full Trace Events . | . . . . . Feedback Events . | . . . . . Feedback Blocked . | . . . . . Robot Schematics Acquired . | . . . . . Robots Built . | . . . . . Authchips . | . . . . . Time . | . . . . . Total Robot Build Rating . | . . . . . Part Schematics Acquired . | . . . . . Parts Built . | . . . . . Authchips . | . . . . . Time . | . . . . . Total Part Build Rating . | . . . . . Parts Repaired . | . . . . . Time . | . . . . . Parts Recycled . | . . . . . Recycled Matter . | . . . . . Retrieved Matter . | . . . . . Retrieved Components . | . . . . . Parts Scanalyzed . | . . . . . Part Schematics Acquired . | . . . . . Parts Damaged . | . . . . . Bothacking | -11 -10 -10 -9 -6 ------------ Run | Yrd Mat Sub Scr Fac Used RIF Installer . | . . . . . Robots Hacked . | . . . . . Non-combat . | . . . . . Combat . | . . . . . Robot Hacks Applied . | . . . . . Relay Couplers Released . | . . . . . Fabnet Peak Effective % . | . . . . . Robots Rewired . | . . . . . Allies Hacked . | . . . . . Hacks Repelled . | . . . . . Allies | -11 -10 -10 -9 -6 -------- Run | Yrd Mat Sub Scr Fac Total Allies . | . . . . . Largest Group . | . . . . . Highest-Rated Group . | . . . . . Highest-Rated Ally . | . . . . . Total Orders . | . . . . . Ally Attacks . | . . . . . Total Damage . | . . . . . Kills . | . . . . . Allies Corrupted . | . . . . . Allies Melted . | . . . . . Intel | -11 -10 -10 -9 -6 ------- Run | Yrd Mat Sub Scr Fac Active Infowar (turns) 4254 | 20 52 279 2648 1255 Sensors 438 | . . . . 438 Terrain 702 | . . . . 702 Seismic 4030 | 20 52 279 2648 1031 Robot Analysis Total . | . . . . . Derelict Logs Recovered . | . . . . . Drone Launches . | . . . . . Drone Recoveries . | . . . . . Exploration | -11 -10 -10 -9 -6 ------------- Run | Yrd Mat Sub Scr Fac Turns Passed 4365 | 111 52 279 2648 1275 Spaces Moved 2375 | 48 32 167 1498 630 Core 7 | 7 . . . . Treads 1997 | 41 32 167 1498 259 Legs . | . . . . . Wheels 371 | . . . . 371 Hover . | . . . . . Flight . | . . . . . Fastest Speed 50 | 50 160 160 160 100 Average Speed 155 | 143 160 160 160 144 Slowest Speed 240 | 160 160 160 240 240 Overloaded Moves . | . . . . . Propulsion Burnouts . | . . . . . Robots Hopped . | . . . . . Potential Cave-ins . | . . . . . Cave-ins Triggered 1 | . . . . 1 Exploration Rate (%) 24 | 5 5 14 82 15 Regions Visited 4 Branch Regions 2 Pre-discovered Areas . | . . . . . Known Exits Taken . | . . . . . Unknown Exits Taken 4 | 1 1 1 1 . Scrap Searched 6 | . . 2 4 . Spaces Dug 3 | . . . . 3 Terrain Destroyed 37 | . . . . 37 Melee 3 | . . . . 3 Projectile . | . . . . . AOE 34 | . . . . 34 Terrain Rammed . | . . . . . Walls Destroyed . | . . . . . Machines Disabled . | . . . . . Actions | -11 -10 -10 -9 -6 --------- Run | Yrd Mat Sub Scr Fac Total 2925 | 72 33 174 1747 899 Wait 430 | 7 2 3 230 188 Move 2371 | 47 31 166 1497 630 Hop . | . . . . . Pick Up 13 | . . . 9 4 Fast Attach 15 | 7 . . . 8 Attach 11 | . . . . 11 Detach 4 | . . . . 4 Swap 11 | 2 . 3 4 2 Drop 6 | . . . 6 . Fire 47 | 7 . 2 . 38 Melee 14 | . . . . 14 Ram . | . . . . . Kick . | . . . . . Crush 2 | 2 . . . . Escape Stasis . | . . . . . Rewire 1 | . . . 1 . Trap . | . . . . . Miscellaneous . | . . . . . Route ------- -11/Scrapyard -10/Materials -10/Subcaves -9/Scraptown (discovered 2 exits: [*Fac x2]) -6/Factory (discovered 1 exit: [Low]) History --------- Turn | Location | Event 14 | -11/Scrapyard | Discovered new exit (range 16) 112 | -11/Scrapyard | Entered Materials 113 | -10/Materials | Met a group of wandering Federalists 161 | -10/Materials | Discovered new exit (range 3) 164 | -10/Materials | Entered Subcaves 165 | -10/Subcaves | Continued accompanying wandering Federalists (5) 165 | -10/Subcaves | Approached by a straggling Scientist 224 | -10/Subcaves | Shifting Twisted Machinery released Enh. Flamer 224 | -10/Subcaves | Shifting Twisted Machinery released Sub. Laser 277 | -10/Subcaves | Lost 3 allies 301 | -10/Subcaves | Build established: Mutant 406 | -10/Subcaves | Wandering Federalist uncovered a shortcut to Scraptown 443 | -10/Subcaves | Entered Scraptown 865 | -9/Scraptown | Visited Spacefarers 965 | -9/Scraptown | Visited Junk Repository 1029 | -9/Scraptown | Heard Great Nut preacher, LISTEN AND RECITE! 1154 | -9/Scraptown | Visited IN-MT5's Study 1580 | -9/Scraptown | Visited Science Testing Area 1602 | -9/Scraptown | Visited Assassins FH 1692 | -9/Scraptown | Discovered new exit (range 3) 2138 | -9/Scraptown | Visited UFD Registry 2138 | -9/Scraptown | Registered with UFD as "Wirebomber" 2185 | -9/Scraptown | Visited Botcube Research 2236 | -9/Scraptown | Visited A0-MCA Data Center 2245 | -9/Scraptown | Given an A- rating by A0-MCA 2257 | -9/Scraptown | Found A0-MCA's Component Scanner 2337 | -9/Scraptown | Visited Cartography Club 2395 | -9/Scraptown | Found Surveybot 17 Chip 2444 | -9/Scraptown | Visited LU-1G1's Boring Crew 2771 | -9/Scraptown | Visited Chapter 10 2819 | -9/Scraptown | Visited Infowarlord's Domain 2833 | -9/Scraptown | Found Exp. Terrain Scanner 2858 | -9/Scraptown | Visited Curators Association 2947 | -9/Scraptown | Visited Scrapoid Pod Storage 3000 | -9/Scraptown | Met Optimus 3000 | -9/Scraptown | Accepted into 0bPrime 3086 | -9/Scraptown | Discovered new exit (range 3) 3091 | -9/Scraptown | Entered Factory 3091 | -6/Factory | Evolved 8 slots: Propulsion x2, Utility x5, Weapon x1 3105 | -6/Factory | Discovered new exit (range 23) 3950 | -6/Factory | Build established: Skirmisher 4178 | -6/Factory | Lost 5 parts (1n2u2w) 4267 | -6/Factory | Crushed by falling debris 4267 | -6/Factory | System corruption reached 10% 4298 | -6/Factory | Lost 4 parts (1n1u2w) 4366 | -6/Factory | Self-destructed Last Messages --------------- 04267_ System corrupted by crushing effect (+4). 04267_ Shock Rifle destroyed. 04267_ System corrupted by crushing effect (+3). 04267_ Com. Wheel destroyed. 04267_ System corrupted by crushing effect (+4). 04273_ System corrupted: Matter fused (-7). 04291_ System corrupted: Matter fused (-5). 04323_ S3>W3STED OP3L>F= 04340_ Arm. Huge Wheel destroyed. 04340_ System corrupted by crushing effect (+4). 04341_ Salvaging Laser destroyed. 04346_ Imp. Sensor Array destroyed. 04353_ System corrupted: Energy discharge (-4). Map ----- +----------------------------------------------------+ | ????????????????????######## #??## ###"# | | ?????????????????????????###=##### # | | ????????????????????????## ### # " | | ?????????????????????##### %! ### # " | | ????????????????????##?### # " | | ??????????????????######## ### # | | ????????????????########## ### # " | | ???????????????################### # " | | ??????????????#################### # " | | ?????????????#?##?################ # | | ????????????##?################### / | | ???????????##?#################### # | | ??????????###?#?#?### # # | | ??????????########### """""" # ##### | | ?????????############ """""" # ##### | | ?????????#?#?######## """""" # ##### | | ????????############# """""" # ##### | | ???????####### #! """""" + ##### | | ???????####### # """""" # ##### | | ???????####### ? # """""" # ##### | | ??????###?#### # """""" # ##### | | ??????###?##?# # """""" # | | ?????######### # ! # | | ?????#######?####+### [ # | | ?????##?######## ############### % | | ???? " @ s b g | | ???? ???######## ###### ##########+#+##### | | ?????###? ?########## ##### # | | ???? ?## ########### ##### # | | ????? # "" ########### ##### # | | ???? ? # "" ########### ##### """ # | | ????? # """ ########### ##### """"" # | | ???? # """ ########### #####! """"" !# | | ????? # """ ########### ##### # | | ????? ## ########### T#### """ # | | ????? ##+################ #### """"" # | | ????? ######### ##### """"" # | | ????? ? ######### ##### + | | ?????? ### # | | ??????#######+######### ########+####### | | ????? #? ? ##### T ######## ### | | ?????"? # ""? "" ##### ######## ### | | ??????? # """ """##### ######## ### | | ??????? # ??" S"#######+########## ### | | ??????? # ""?#### ###### ### | | ????????? """#### """ # # | | ????????? #### """ # + | | ????????? #### """ # # | | ??????????####?####### # ###### | | ?????????############# "" # ###### | +----------------------------------------------------+ Best States ------------- Heat Dissipation 37 Energy Generation 10 Energy Capacity 250 Matter Stores 300 Matter Capacity 300 Sight Range 16 Robot Scan Range 15 Terrain Scan Range 30 Terrain Scan Density 1210 Evasion (%) 40 Recoil Reduction 3 Item Schematics ----------------- None Robot Schematics ------------------ None Fabricated ------------ Nothing Repaired ---------- Nothing Alien Tech Used ----------------- None Achievements -------------- None Challenges ------------ None Game ------ Seed FluxCryofiberMeganuke Manual? 0 Play Time 00:32:55 Cumulative 81.8 hours Start 2025.09.21 @ 11:09:55 End 2025.09.21 @ 11:50:36 Sessions 1 Manual Loads 0 Difficulty Rogue Special Mode None Game No. 173 Rogue 171 Adventurer 0 Explorer 2 Win Type - Total 0 Types 0/0/0/0/0/0/0/0/0/0 Lore% 29 Gallery% 46 Achievement% 41 Wizard Run 0 Options --------- Layout 2 ASCII 0 Keyboard 1 Movement Arrows Keybinds 0 Fullscreen 1 Font 28/SmallcapsGlow Map View 50x49 Zoom Use 0% Tactical HUD 1 Map Filters NONE Filters NONE Steam 1 RUN: e6423e08-a556-4254-9a0f-ee1585a86476